{"text_format":"2","workbook":"xlsx","n_sheets":2,"sheets":["2020","Лист1"],"not_rendered":{"charts":0,"images":0,"macros":0,"external_links":0,"defined_names":0,"comments":0,"pivot_tables":0},"unopened":[],"bounds":{"document_bytes":16777216,"sheet_cells":100000,"run_cost":"one","rows_first":2000,"rows_last":500,"rows_between":2000,"halvings":0,"cell_chars":16384,"cell_head_chars":4096},"cells_cut":0,"cells_raw":0,"read":"whole","date_system":"1900"}

{"sheet":"2020","index":0,"n_rows":81,"n_cols":9,"rows_kept":81,"cut":false,"hidden":false,"merged":[[10,3,12,3],[5,6,6,6],[5,7,6,7],[5,8,6,8],[1,2,1,8],[5,3,6,4],[5,2,6,2],[62,2,63,2],[65,2,66,2],[68,2,69,2],[76,2,79,2],[5,5,6,5],[31,3,32,3],[31,2,35,2],[37,2,40,2],[7,2,13,2],[15,2,19,2],[22,3,23,3],[21,2,25,2],[28,3,29,3],[27,2,29,2],[15,3,16,3],[7,3,9,3]]}
[]
[null,null,"Расчет субсидий на выполнение муниципального задания Тонкинского муниципального района на 2020 год "]
[]
[]
[]
[null,null,"Наименование учреждения","Наименование муниципальной услуги",null,"Ед. изм. натуральных показателей","Натуральные показатели","Нормативные затраты, руб.","Сумма субсидии, руб."]
[]
[null,null,"МАОУ \"Тонкинская ОШ\"","Реализация основных общеобразовательных программ начального общего образования","Обучающиеся, за исключением обучающихся с ограниченными возможностями здоровья (ОВЗ) и детей -инвалидов","чел.",243,55671,{"$f":"G8*H8","v":13528053}]
[{"$nulls":4},"дети-инвалиды","чел.",3,56041,{"$f":"G9*H9","v":168123}]
[{"$nulls":4},"Обучающиеся с ограниченными возможностями здоровья (ОВЗ)","чел.",8,116968,935744]
[null,null,null,"Реализация основных общеобразовательных программ основного общего образования","Обучающиеся, за исключением обучающихся с ограниченными возможностями здоровья (ОВЗ) и детей -инвалидов","чел.",285,66161,18855885]
[{"$nulls":4},"дети-инвалиды","чел.",7,67090,469630]
[{"$nulls":4},"Обучающиеся с ограниченными возможностями здоровья (ОВЗ)","чел.",5,142200,711000]
[null,null,null,"Реализация основных общеобразовательных программ среднего общего образования","Обучающиеся, за исключением обучающихся с ограниченными возможностями здоровья (ОВЗ) и детей -инвалидов","чел.",39,66979,2612181]
[null,null,null,"Итого",null,null,{"$f":"SUM(G8:G14)","v":590},null,{"$f":"SUM(I8:I14)","v":37280616}]
[null,null,"МБОУ \"Пакалевская ОШ\"","Реализация основных общеобразовательных программ начального общего образования","Обучающиеся, за исключением обучающихся с ограниченными возможностями здоровья (ОВЗ) и детей -инвалидов","чел.",4,430542,1722168]
[{"$nulls":4},"Обучающиеся с ограниченными возможностями здоровья (ОВЗ)",null,3,43289,129867]
[null,null,null,"Реализация основных общеобразовательных программ основного общего образования","Обучающиеся, за исключением обучающихся с ограниченными возможностями здоровья (ОВЗ) и детей -инвалидов","чел.",5,817979,4089895]
[null,null,null,"Реализация основных общеобразовательных программ дошкольного образования",null,"чел.",7,331122,2317854]
[null,null,null,"Присмотр и уход",null,"чел.",7,82211,575477]
[null,null,null,"Итого",null,null,{"$f":"SUM(G16:G20)","v":26},null,{"$f":"SUM(I16:I20)","v":8835261}]
[null,null,"МБОУ \"Вязовская ОШ\"","Реализация основных общеобразовательных программ начального общего образования","Обучающиеся, за исключением обучающихся с ограниченными возможностями здоровья (ОВЗ) и детей -инвалидов","чел.",16,183708,2939328]
[null,null,null,"Реализация основных общеобразовательных программ основного общего образования","Обучающиеся, за исключением обучающихся с ограниченными возможностями здоровья (ОВЗ) и детей -инвалидов","чел.",15,317133,4756995]
[{"$nulls":4},"дети-инвалиды","чел.",1,315268,315268]
[null,null,null,"Реализация основных общеобразовательных программ дошкольного образования",null,"чел.",16,150608,2409728]
[null,null,null,"Присмотр и уход",null,"чел.",16,63248,1011968]
[null,null,null,"Итого",null,null,{"$f":"SUM(G22:G26)","v":64},null,{"$f":"SUM(I22:I26)","v":11433287}]
[null,null,"МБОУ \"Бердниковская ОШ\"","Реализация основных общеобразовательных программ начального общего образования","Обучающиеся, за исключением обучающихся с ограниченными возможностями здоровья (ОВЗ) и детей -инвалидов","чел.",20,111100,{"$f":"G28*H28","v":2222000}]
[null,null,null,"Реализация основных общеобразовательных программ основного общего образования","Обучающиеся, за исключением обучающихся с ограниченными возможностями здоровья (ОВЗ) и детей -инвалидов","чел.",17,300654,{"$f":"G29*H29","v":5111118}]
[{"$nulls":4},"дети-инвалиды","чел.",1,284394,284394]
[null,null,null,"Итого",null,null,38,null,{"$f":"SUM(I28:I30)","v":7617512}]
[null,null,"МБОУ \"Пахутинская ОШ\"","Реализация основных общеобразовательных программ начального общего образования","Обучающиеся, за исключением обучающихся с ограниченными возможностями здоровья (ОВЗ) и детей -инвалидов","чел.",6,333381,2000286]
[{"$nulls":4},"дети-инвалиды",null,1,351848,351848]
[null,null,null,"Реализация основных общеобразовательных программ основного общего образования","Обучающиеся, за исключением обучающихся с ограниченными возможностями здоровья (ОВЗ) и детей -инвалидов","чел.",6,660023,3960138]
[null,null,null,"Реализация основных общеобразовательных программ дошкольного образования",null,"чел.",4,353794,1415176]
[null,null,null,"Присмотр и уход",null,"чел.",4,121853,487412]
[null,null,null,"Итого",null,null,21,null,{"$f":"SUM(I32:I36)","v":8214860}]
[null,null,"МБОУ \"Большесодомовская ОШ\"","Реализация основных общеобразовательных программ начального общего образования","Обучающиеся, за исключением обучающихся с ограниченными возможностями здоровья (ОВЗ) и детей -инвалидов","чел.",14,153076,2143064]
[null,null,null,"Реализация основных общеобразовательных программ основного общего образования","Обучающиеся, за исключением обучающихся с ограниченными возможностями здоровья (ОВЗ) и детей -инвалидов","чел.",16,326289,5220624]
[null,null,null,"Реализация основных общеобразовательных программ дошкольного образования",null,"чел.",10,213551,2135510]
[null,null,null,"Присмотр и уход",null,"чел.",10,60907,609070]
[null,null,null,"Итого",null,null,50,null,{"$f":"SUM(I38:I41)","v":10108268}]
[null,null,"МБДОУ д/с №1 \"Теремок\"","Реализация основных общеобразовательных программ дошкольного образования",null,"чел.",98,73091,{"$f":"H43*G43","v":7162918}]
[null,null,null,"Присмотр и уход",null,"чел.",98,25401,{"$f":"H44*G44","v":2489298}]
[null,null,null,"Итого",null,null,196,null,{"$f":"SUM(I43:I44)","v":9652216}]
[null,null,"МБДОУ д/с №2 \"Малышок\"","Реализация основных общеобразовательных программ дошкольного образования",null,"чел.",33,138624,{"$f":"H46*G46","v":4574592}]
[null,null,null,"Присмотр и уход",null,"чел.",33,56654,{"$f":"H47*G47","v":1869582}]
[null,null,null,"Итого",null,null,66,null,{"$f":"SUM(I46:I47)","v":6444174}]
[null,null,"МБДОУ д/с №4 \"Солнышко\"","Реализация основных общеобразовательных программ дошкольного образования",null,"чел.",111,89501,{"$f":"H49*G49","v":9934611}]
[null,null,null,"Присмотр и уход",null,"чел.",111,33633,{"$f":"H50*G50","v":3733263}]
[null,null,null,"Итого",null,null,222,null,{"$f":"SUM(I49:I50)","v":13667874}]
[null,null,"МБДОУ д/с №5 \"Сказка\"","Реализация основных общеобразовательных программ дошкольного образования",null,"чел.",55,93388,{"$f":"H52*G52","v":5136340}]
[null,null,null,"Присмотр и уход",null,"чел.",55,34336,{"$f":"H53*G53","v":1888480}]
[null,null,null,"Итого",null,null,110,null,{"$f":"SUM(I52:I53)","v":7024820}]
[null,null,"МБДОУ д/с №8 \"Елочка\"","Реализация основных общеобразовательных программ дошкольного образования",null,"чел.",19,158921,{"$f":"H55*G55","v":3019499}]
[null,null,null,"Присмотр и уход",null,"чел.",19,58293,{"$f":"H56*G56","v":1107567}]
[null,null,null,"Итого",null,null,38,null,{"$f":"SUM(I55:I56)","v":4127066}]
[null,null,"МБУ ДО ЦДО","реализация дополнительных общеразвивающих программ",null,"чел.-час",116888,79,{"$f":"G58*H58","v":9234152}]
[null,null,null,"Итого",null,null,116888,null,9234152]
[null,null,"МБУ ХЭС СО","Содержание (эксплуатация) имущества, находящегося в государственной (муниципальной ) собственности ",null,"ед.",11,1191586,{"$f":"G60*H60","v":13107446}]
[null,null,null,"Итого",null,null,11,null,13107446]
[null,null,"Культура",null,null,null,{"$f":"G65+G68+G71+G73+G75","v":304818},{"$f":"I62/G62","v":153.50974870250445},{"$f":"I65+I68+I71+I73+I75","v":46792534.580000006}]
[null,null,"МБУК«МЦКС»","Организация деятельности клубных формирований и формирований самодеятельного творчества\n\n",null,"ед.",142,127239.75,{"$f":"G63*H63","v":18068044.5}]
[null,null,null,"Организация и проведение культурно-массовых мероприятий",null,"чел.",199800,27.98,{"$f":"G64*H64","v":5590404}]
[null,null,"Итого:",null,null,null,{"$f":"SUM(G63:G64)","v":199942},{"$f":"I65/G65","v":118.32655720158846},{"$f":"SUM(I63:I64)","v":23658448.5}]
[null,null,"МБУК «НКМ»","Публичный показ музейных предметов, музейных колекций\n\n",null,"чел.",10850,19.37,{"$f":"G66*H66","v":210164.5}]
[null,null,null,"Формирование учет, изучение, обеспечение физического сохранения и безопасности музейных предметов, музейных коллекций ",null,"ед.",4395,583.55999999999995,2564746.1999999997]
[null,null,"Итого:",null,null,null,{"$f":"SUM(G66:G67)","v":15245},{"$f":"I68/G68","v":182.02103640537879},{"$f":"SUM(I66:I67)","v":2774910.6999999997}]
[null,null,"МБУК «МЦБС»","Библиотечное, библиографическое и информационное обслуживание пользователей библиотеки\n\n",null,"чел.",65000,94.77,{"$f":"G69*H69","v":6160050}]
[null,null,null,"Библиографическая обработка документов и создание каталогов ",null,"ед.",24520,245.5,6019660]
[null,null,"Итого:",null,null,null,{"$f":"SUM(G69:G70)","v":89520},{"$f":"I71/G71","v":136.05574173369081},{"$f":"SUM(I69:I70)","v":12179710}]
[null,null,"МБУ ДО \"ДМШ\"","Реализация дополнительных общеобразовательных предпрофесиональных программ в области исскуств ",null,"чел.",65,74872.88,{"$f":"G72*H72","v":4866737.2}]
[null,null,"Итого:",null,null,null,{"$f":"SUM(G72)","v":65},{"$f":"I73/G73","v":74872.88},{"$f":"SUM(I72)","v":4866737.2}]
[null,null,"МБУ ДО \"ДХШ\"","Реализация дополнительных общеобразовательных предпрофесиональных программ в области исскуств ",null,"чел.",46,72015.83,{"$f":"G74*H74","v":3312728.18}]
[null,null,"Итого:",null,null,null,{"$f":"SUM(G74)","v":46},{"$f":"I75/G75","v":72015.83},{"$f":"SUM(I74)","v":3312728.18}]
[null,null,"Спорт",null,null,null,{"$f":"SUM(G77:G80)","v":152},20819.984210526316,{"$f":"SUM(I77:I80)","v":3164637.6}]
[null,null,"МБУ ФСК «Кристалл».","Организация и проведение Официальных Физкультурных (физкультурно-оздоровительных) мероприятий",null,"количество мероприятий",32,89519.91,{"$f":"G77*H77","v":2864637.12}]
[null,null,null,"Организация и проведение официальных спортивных мероприятий",null,"количество мероприятий",108,2685.19,290000.52]
[null,null,null,"Проведение тестирования выполнения нормативов испытаний (тестов) комплекса  ГТО   ",null,"количество мероприятий",12,833.33,9999.9600000000009]
[null,null,null,"Организация и проведение Физкультурных и спортивных мероприятий в рамках         Всероссийского физкультурно-спортивного комплекса «Готов к труду и обороне» (ГТО) (за исключением тестирования выполнения нормативов испытаний комплекса ГТО)",null,"количество мероприятий",0,0,0]
[null,null,"Итого:",null,null,null,{"$f":"SUM(G77:G80)","v":152},{"$f":"I81/G81","v":20819.984210526316},{"$f":"SUM(I77:I80)","v":3164637.6}]

{"sheet":"Лист1","index":1,"n_rows":25,"n_cols":6,"rows_kept":25,"cut":false,"hidden":false,"merged":[[5,0,6,0],[8,0,9,0],[11,0,13,0],[20,0,23,0],[1,0,1,5]]}
[]
["Расчет субсидий на выполнение муниципального задания Тонкинского муниципального района на 2019 год "]
[]
["Наименование учреждения","Наименование муниципальной услуги","Ед. изм. натуральных показателей","Натуральные показатели","Нормативные затраты, руб.","Сумма субсидии, руб."]
["Культура",null,null,{"$f":"D8+D11+D15+D17+D19","v":0},{"$f":"F5/D5","v":{"$error":"#DIV/0!"}},{"$f":"F8+F11+F15+F17+F19","v":0}]
["МБУК«МЦКС»","Организация деятельности клубных формирований и формирований самодеятельного творчества\n\n","ед.",null,null,{"$f":"D6*E6","v":0}]
[null,"Организация и проведение культурно-массовых мероприятий","чел.",null,null,{"$f":"D7*E7","v":0}]
["Итого:",null,null,{"$f":"SUM(D6:D7)","v":0},{"$f":"F8/D8","v":{"$error":"#DIV/0!"}},{"$f":"SUM(F6:F7)","v":0}]
["МБУК «НКМ»","Публичный показ музейных предметов, музейных колекций\n\n","чел.",null,null,{"$f":"D9*E9","v":0}]
[null,"Формирование учет, изучение, обеспечение физического сохранения и безопасности музейных предметов, музейных коллекций ","ед.",null,null,0]
["Итого:",null,null,{"$f":"SUM(D9:D10)","v":0},{"$f":"F11/D11","v":{"$error":"#DIV/0!"}},{"$f":"SUM(F9:F10)","v":0}]
["МБУК «МЦБС»","Библиотечное, библиографическое и информационное обслуживание пользователей библиотеки\n\n","чел.",null,null,{"$f":"D12*E12","v":0}]
[null,"Формирование, учет, изучение, обеспечение физического сохранения и безопасности фондов библиотек, включая оцифровку фондов \n\n","ед.",null,null,0]
[null,"Библиографическая обработка документов и создание каталогов ","ед.",null,null,0]
["Итого:",null,null,{"$f":"SUM(D12:D14)","v":0},{"$f":"F15/D15","v":{"$error":"#DIV/0!"}},{"$f":"SUM(F12:F14)","v":0}]
["МБУ ДО \"ДМШ\"","Реализация дополнительных общеобразовательных предпрофесиональных программ в области исскуств ","чел.",null,null,{"$f":"D16*E16","v":0}]
["Итого:",null,null,{"$f":"SUM(D16)","v":0},{"$f":"F17/D17","v":{"$error":"#DIV/0!"}},{"$f":"SUM(F16)","v":0}]
["МБУ ДО \"ДХШ\"","Реализация дополнительных общеобразовательных предпрофесиональных программ в области исскуств ","чел.",null,null,{"$f":"D18*E18","v":0}]
["Итого:",null,null,{"$f":"SUM(D18)","v":0},{"$f":"F19/D19","v":{"$error":"#DIV/0!"}},{"$f":"SUM(F18)","v":0}]
["Спорт",null,null,{"$f":"SUM(D21:D24)","v":0},{"$error":"#DIV/0!"},{"$f":"SUM(F21:F24)","v":0}]
["МБУ ФСК «Кристалл».","Организация и проведение Официальных Физкультурных (физкультурно-оздоровительных) мероприятий","количество мероприятий",null,null,{"$f":"D21*E21","v":0}]
[null,"Организация и проведение официальных спортивных мероприятий","количество мероприятий",null,null,0]
[null,"Проведение тестирования выполнения нормативов испытаний (тестов) комплекса  ГТО   ","количество мероприятий",null,null,0]
[null,"Организация и проведение Физкультурных и спортивных мероприятий в рамках         Всероссийского физкультурно-спортивного комплекса «Готов к труду и обороне» (ГТО) (за исключением тестирования выполнения нормативов испытаний комплекса ГТО)","количество мероприятий",null,null,0]
["Итого:",null,null,{"$f":"SUM(D21:D24)","v":0},{"$f":"F25/D25","v":{"$error":"#DIV/0!"}},{"$f":"SUM(F21:F24)","v":0}]